Cogmind - Beta 15 @@@ ROGUE MODE // 2025.09.05 @ 15:22:20 Player: Nuclear Winter Man Result: Destroyed by D-53 Grenadier with Mini Grenade Launcher Performance ------------- Evolutions (0) 0 Regions Visited (2) 400 Robots Destroyed (7) 35 Value Destroyed (94) 94 Prototype IDs (2) 40 Alien Tech Used (0) 0 Bonus (0) 0 TOTAL SCORE: 569 Bonus ------- None Cogmind --------- Core Integrity 0/250 Matter 284/300 Energy 100/100 System Corruption 2% Temperature Cool (0) Movement Core (100) Ox1 Location -10/Mines Parts ------- > --- POWER (1) -------- (None) > --- PROPULSION (2) --- (None) > --- UTILITY (2) ------ Small Storage Unit > --- WEAPON (2) ------- (None) > --- INVENTORY (8) ---- Ion Engine Light Ion Engine Aluminum Leg Wheel Compact Wheel Faulty Experimental Sensor Array Assault Rifle Light Assault Rifle Peak State ------------ > --- POWER ------------ Ion Engine > --- PROPULSION ------- Aluminum Leg Aluminum Leg > --- UTILITY ---------- Small Storage Unit Hardened Light Armor Plating > --- WEAPON ----------- Light Assault Rifle Light Assault Rifle > --- INVENTORY -------- Ion Engine Light Ion Engine Wheel Compact Wheel Experimental Sensor Array Assault Rifle Light Assault Rifle [Rating: 9] Favorites ----------- Power Ion Engine Engine Ion Engine Propulsion Aluminum Leg Leg Aluminum Leg Utility Small Storage Unit Storage Small Storage Unit Protection Hardened Light Armor Plating Weapon Light Assault Rifle Ballistic Gun Light Assault Rifle Build | -11 -10 -10 ------- Run | Yrd Mat Min Slots Evolved . | . . . Power . | . . . Propulsion . | . . . Utility . | . . . Weapon . | . . . Parts Attached 7 | 6 1 . Power 1 | 1 . . Engine 1 | 1 . . Core . | . . . Reactor . | . . . Propulsion 2 | 2 . . Treads . | . . . Leg 2 | 2 . . Wheel . | . . . Hover . | . . . Flight . | . . . Utility 2 | 1 1 . Device . | . . . Storage 1 | 1 . . Processor . | . . . Hackware . | . . . Protection 1 | . 1 . Artifact . | . . . Weapon 2 | 2 . . Energy Gun . | . . . Energy Cannon . | . . . Ballistic Gun 2 | 2 . . Ballistic Cannon . | . . . Launcher . | . . . Special Weapon . | . . . Impact Weapon . | . . . Slashing Weapon . | . . . Piercing Weapon . | . . . Special Melee Weapon . | . . . Unidentified Prototypes . | . . . Parts Lost 6 | . . 6 Power 1 | . . 1 Propulsion 2 | . . 2 Utility 1 | . . 1 Weapon 2 | . . 2 Highest Loss Streak 6 | . . 6 To Critical Strikes . | . . . Average Backups 6 | 1 5 7 Power 1 | . 1 2 Propulsion 2 | 1 2 2 Utility . | . . . Weapon 1 | . 1 2 Tool/Special . | . . . Unused Backups 9 | . 1 8 Power 3 | . 1 2 Propulsion 3 | . . 3 Utility 1 | . . 1 Weapon 2 | . . 2 Tool/Special . | . . . Average Slot Usage (%) 97 | . 97 97 Engine 13 | . 14 13 Leg 27 | . 28 27 Storage 14 | . 14 14 Protection 13 | . 12 13 Ballistic Gun 27 | . 28 27 Peak Build Rating 9 | 6 8 9 Average Rating 7 | 3 7 8 On Entrance 4 | . 6 8 Naked Turns . | . . . Heaviest Build 17 | 12 17 17 Greatest Support 20 | 20 20 20 Greatest Overweight (x) 3 | 1 . 3 Average Overweight (x) . | . . . Largest Inventory Capacity 8 | 8 8 8 Average Capacity 7 | 7 8 8 Most Carried 8 | 4 7 8 Average Carried 6 | 2 5 7 Final Capacity 8 | 8 8 8 Final Carried 8 | 4 6 8 Class Distribution -------------------- 100% | Mutant Dominant Class ---------------- Mutant | -10/Materials Mutant | -10/Mines Resources | -11 -10 -10 ----------- Run | Yrd Mat Min Matter Collected 272 | 157 76 39 Remotely . | . . . Salvage Created 134 | . 95 39 Parts 12 | . 10 2 Haulers Intercepted . | . . . Recyclers Shooed . | . . . Parts Field Recycled . | . . . Retrieved Matter . | . . . Parts Self-Destructed . | . . . Prevented . | . . . Kills | -11 -10 -10 ------- Run | Yrd Mat Min Combat Hostiles Destroyed 7 | . 6 1 Guns 7 | . 6 1 Classes Destroyed 2 | . 1 1 Swarmer 6 | . 6 . Grunt 1 | . . 1 Best Kill Streak 3 | . 3 1 Combat Bots Only 3 | . 3 1 Max Kills in Single Turn 1 | . 1 1 Gunslinging . | . . . Exploded . | . . . Melee . | . . . Uniques/NPCs Destroyed . | . . . Combat | -11 -10 -10 -------- Run | Yrd Mat Min Hostile Shots Fired 63 | . 33 30 Missed 18 | . 13 5 Hits 45 | . 20 25 Projectile 45 | . 20 25 AOE 13 | . . 13 Damage Taken 878 | . 169 709 Core 258 | . 52 206 Absorbed by Shields . | . . . Core Remaining (%) 100 | 100 . . Volleys Fired 19 | . 12 7 Largest 2 | . 2 2 Hottest 40 | . 40 40 Shots Fired 38 | . 24 14 Gun 38 | . 24 14 Cannon . | . . . Launcher . | . . . Special . | . . . Kinetic 38 | . 24 14 Thermal . | . . . Explosive . | . . . Electromagnetic . | . . . Robot Hit Streak 9 | . 2 9 Robot Miss Streak 4 | . 2 4 Penetration Max . | . . . Secondary Targets 2 | . 2 . Max Gunslinging Chain 1 | . 1 . Shots Hit Robots 20 | . 11 9 Core Hits 12 | . 8 4 Critical Kills . | . . . Critical Parts Destroyed 2 | . . 2 Critical Strikes 2 | . . 2 Destroy 2 | . . 2 Melee Attacks . | . . . Impact . | . . . Slashing . | . . . Piercing . | . . . Sneak Attacks . | . . . Combat Hostiles . | . . . Follow-up Attacks . | . . . Damage Inflicted 169 | . 91 78 Guns 169 | . 91 78 Cannons . | . . . Explosions . | . . . Melee . | . . . Ramming . | . . . Kinetic 169 | . 91 78 Thermal . | . . . Explosive . | . . . Electromagnetic . | . . . Impact . | . . . Slashing . | . . . Piercing . | . . . Highest Corruption 2 | . 2 2 Average Corruption 2 | . 2 2 Corruption Purged . | . . . Corruption Blocked . | . . . Effects 5 | . 3 2 Energy Discharges 2 | . 1 1 Parts Fused 1 | . . 1 Data Loss (minor) 2 | . 2 . Overload Shots . | . . . Overflow Damage . | . . . Projectiles . | . . . Explosions . | . . . Melee . | . . . Knockbacks . | . . . Impact . | . . . Kinetic . | . . . Secondary . | . . . Self-Inflicted Damage . | . . . Shots . | . . . Rammed . | . . . Targets Rammed . | . . . Kicked . | . . . Crushed . | . . . Highest Temperature 40 | . 25 40 Average Temperature 15 | . 13 21 Received Heat Transfer 30 | . . 30 Siege Activations . | . . . Martial Activations . | . . . Shielding Activations . | . . . Robots Disrupted . | . . . Combat Hostiles . | . . . Robots Corrupted . | . . . Combat Hostiles . | . . . Parts Fried . | . . . Impact Corruptions . | . . . Robots Melted . | . . . Combat Hostiles . | . . . Parts Melted . | . . . Heat Transferred . | . . . Parts Sabotaged . | . . . Parts Stolen . | . . . Parts Stripped . | . . . Power Chain Reactions . | . . . Alert | -11 -10 -10 ------- Run | Yrd Mat Min Maximum Alert Level . | . . . Low Security (%) 100 | 100 100 100 Level 1 . | . . . Level 2 . | . . . Level 3 . | . . . Level 4 . | . . . Level 5 . | . . . High Security . | . . . Max Security . | . . . Peak Influence 110 | . 110 34 Initial 34 | . . 34 Average 18 | . 57 6 Influence Increases 175 | . 140 35 Destroy 0b10 Robot/C 140 | . 120 20 Destroy Leader 20 | . 20 . Lose Combat Pursuer 15 | . . 15 Influence Decreases 175 | . 50 125 Entered New Map 56 | . . 56 Time Decay 119 | . 50 69 Squads Dispatched 1 | . . 1 Investigation 1 | . . 1 Extermination . | . . . Reinforcement . | . . . Assault . | . . . Garrison . | . . . Intercept . | . . . Searches Triggered . | . . . Construction Impeded . | . . . Haulers Reinforced . | . . . Active Scanning Responses . | . . . Cargo Convoy Interrupts . | . . . Stealth | -11 -10 -10 --------- Run | Yrd Mat Min Distress Signals 1 | . 1 . Communications Jammed . | . . . Distress Signals . | . . . Times Spotted 21 | . 9 12 Peak Tracking Total 20 | . 4 20 Tactical Retreats 2 | . . 2 Traps | -11 -10 -10 ------- Run | Yrd Mat Min Traps Triggered 1 | . 1 . Indirectly . | . . . Trap Hack Attempts . | . . . Triggered . | . . . Disarmed . | . . . Reprogrammed . | . . . Reused . | . . . Traps Extracted . | . . . Installed . | . . . Triggered . | . . . Machines | -11 -10 -10 ---------- Run | Yrd Mat Min Machines Disabled . | . . . Max in Single Turn . | . . . Machines Repaired . | . . . Machines Dismantled . | . . . Machines Sabotaged . | . . . Overloaded Fab Kills . | . . . Hacking | -11 -10 -10 --------- Run | Yrd Mat Min Machines Accessed 2 | . 1 1 Terminals 1 | . 1 . Fabricators . | . . . Repair Stations . | . . . Recycling Units . | . . . Scanalyzers . | . . . Garrison Access . | . . . Total Hacks 5 | . 4 1 Successful 2 | . 1 1 Failed 3 | . 3 . Catastrophic 1 | . 1 . Database Lockouts . | . . . Manual 2 | . 2 . Terminals 4 | . 4 . Fabricators . | . . . Repair Stations . | . . . Recycling Units . | . . . Scanalyzers . | . . . Garrison Access . | . . . Terminal Hacks 2 | . 1 1 Prototype ID Bank 1 | . 1 . Open Door 1 | . . 1 Fabricator Hacks . | . . . Repair Station Hacks . | . . . Recycling Unit Hacks . | . . . Scanalyzer . | . . . Garrison Access Hacks . | . . . Unauthorized Hacks . | . . . Terminals . | . . . Fabricators . | . . . Repair Stations . | . . . Recycling Units . | . . . Scanalyzers . | . . . Garrison Access . | . . . Data Cores Recovered . | . . . Used . | . . . Hacking Detections 1 | . 1 . Full Trace Events . | . . . Feedback Events . | . . . Feedback Blocked . | . . . Robot Schematics Acquired . | . . . Robots Built . | . . . Authchips . | . . . Time . | . . . Total Robot Build Rating . | . . . Part Schematics Acquired . | . . . Parts Built . | . . . Authchips . | . . . Time . | . . . Total Part Build Rating . | . . . Parts Repaired . | . . . Time . | . . . Parts Recycled . | . . . Recycled Matter . | . . . Retrieved Matter . | . . . Retrieved Components . | . . . Parts Scanalyzed . | . . . Part Schematics Acquired . | . . . Parts Damaged . | . . . Bothacking | -11 -10 -10 ------------ Run | Yrd Mat Min Used RIF Installer . | . . . Robots Hacked . | . . . Non-combat . | . . . Combat . | . . . Robot Hacks Applied . | . . . Relay Couplers Released . | . . . Fabnet Peak Effective % . | . . . Robots Rewired . | . . . Allies Hacked . | . . . Hacks Repelled . | . . . Allies | -11 -10 -10 -------- Run | Yrd Mat Min Total Allies 2 | . . 2 Largest Group 2 | . . 2 Highest-Rated Group 42 | . . 42 Highest-Rated Ally 31 | . . 31 Total Orders . | . . . Ally Attacks 13 | . . 13 Total Damage 190 | . . 190 Kills 5 | . . 5 Allies Corrupted . | . . . Allies Melted 1 | . . 1 Intel | -11 -10 -10 ------- Run | Yrd Mat Min Active Infowar (turns) . | . . . Robot Analysis Total . | . . . Derelict Logs Recovered 1 | . . 1 Drone Launches . | . . . Drone Recoveries . | . . . Exploration | -11 -10 -10 ------------- Run | Yrd Mat Min Turns Passed 545 | 63 135 347 Spaces Moved 353 | 41 82 230 Core 13 | 4 . 9 Treads . | . . . Legs 340 | 37 82 221 Wheels . | . . . Hover . | . . . Flight . | . . . Fastest Speed 50 | 50 120 100 Average Speed 120 | 123 120 120 Slowest Speed 200 | 190 120 200 Overloaded Moves . | . . . Propulsion Burnouts . | . . . Robots Hopped . | . . . Potential Cave-ins . | . . . Cave-ins Triggered . | . . . Exploration Rate (%) 25 | 4 25 47 Regions Visited 2 Branch Regions 1 Pre-discovered Areas . | . . . Known Exits Taken . | . . . Unknown Exits Taken 2 | 1 1 . Scrap Searched . | . . . Spaces Dug . | . . . Terrain Destroyed . | . . . Melee . | . . . Projectile . | . . . AOE . | . . . Terrain Rammed . | . . . Walls Destroyed . | . . . Machines Disabled . | . . . Actions | -11 -10 -10 --------- Run | Yrd Mat Min Total 439 | 51 99 289 Wait 49 | . 1 48 Move 351 | 40 81 230 Hop . | . . . Pick Up 10 | 5 3 2 Fast Attach 7 | 5 1 1 Attach 1 | 1 . . Detach . | . . . Swap . | . . . Drop 2 | . 1 1 Fire 19 | . 12 7 Melee . | . . . Ram . | . . . Kick . | . . . Crush . | . . . Escape Stasis . | . . . Rewire . | . . . Trap . | . . . Miscellaneous . | . . . Route ------- -11/Scrapyard -10/Materials (discovered 2 exits: *Min x2) -10/Mines History --------- Turn | Location | Event 50 | -11/Scrapyard | Discovered new exit (range 12) 64 | -11/Scrapyard | Entered Materials 131 | -10/Materials | Discovered new exit (range 9) 140 | -10/Materials | Discovered new exit (range 14) 199 | -10/Materials | Entered Mines 281 | -10/Mines | Found a damaged Exp. Sensor Array with a note attached 283 | -10/Mines | Found Prototype Device 290 | -10/Mines | Assembled infested the area 295 | -10/Mines | Assisted by a Guerilla fighting off Assembled 308 | -10/Mines | Build established: Mutant 353 | -10/Mines | Learned 8 Materials zone layouts 418 | -10/Mines | Met a Derelict shopkeep closing up shop 539 | -10/Mines | Core integrity fell below 50% 544 | -10/Mines | Core integrity fell below 20% 546 | -10/Mines | Destroyed by D-53 Grenadier with Mini Grenade Launcher Last Messages --------------- Sealed Doors opened. 00418_ Y8-Z4H(g): "Sorry, the Unaware have moved into these parts and I'm closing up shop. No more sales from me!" 00420_ ALERT: Derelict activity detected in mines. Dispatching investigation squad. 00422_ Y8-Z4H(g): "Well, take what you want I guess, I've had enough of this place!" 00431_ Dropped Ion Engine. 00433_ Acquired Ion Engine. 00510_ System corrupted: Energy discharge (-62). 00530_ Ion Engine destroyed. 00533_ Aluminum Leg destroyed. 00536_ Hrd. Light Armor Plating destroyed. 00537_ The unstable cave ceiling collapses. 00538_ Lgt. Assault Rifle destroyed. 00539_ D-53 Grenadier destroyed. 00543_ Lgt. Assault Rifle destroyed. 00543_ T-07 Excavator destroyed. 00544_ The unstable cave ceiling collapses. Map ----- +----------------------------------------------------+ | ??????????????????????????????????????? | | ??????????????????????????????????????? | | ??????????????????????????????????????? | | ??????????????????????????????????????? | | ??????????????????????????????????????? | | ??????????????????????????????????????? | | ??????????????????????????????????????? | | ??????????????????????????????????????? | | ??????????????????????????????????????? | | ??????????????????????????????????????? | | ??????????????????????????????????????? | | ??????????????????????????????????????? | | ??????????????????????????????????????? | | ??????????????????????????????????????? | | ??????????????????????????????????????? | | ??????????????????????????????????????? | | ??????????????????########????????????? | | ??????????????????#""""""#????????????? | | ??????????????????#!!/]!]#????????????? | | ??????????????????## ##????????????? | | ????????????????####= !#?????????????? | | ???????????????## ## ###????????????? | | ??????????????## X ###### #????? | | ????????????### t #????? | | ??????????### ! $ #????? | | ??????????# @%! #######????? | | ?????????### | ## ####??????????? | | ?????????# ########?????????????? | | ?????????# d ##??????????????????? | | ?????# ### # # #####??????????????? | | ?????# r #?????????????? | | ?????# ## ##????????????? | | ?????# ??# ##???????????? | | ?????#???## ######??????? | | ??????????# #??????? | | ??????????# a #??????? | | ??????????# ##### #??????# | | ????????? # #???# #????### | | ???????? ######## ##???# #???## | | ??????? ???????#####????# #???# | | ??????# ????????????????# #???# | | ??????# ????????????????# ##### | | ??????##%[ ?????????????????# | | ???????#!##?????????????????# | | ???????# ???????????????????####### | | ???????#??????????????????????????## | | ???????????????????????????????????## | | ????????????????????????????????????## | | ?????????????????????????????????????# | | ?????????????????????????????????????# | +----------------------------------------------------+ Best States ------------- Heat Dissipation 25 Energy Generation 10 Energy Capacity 250 Matter Stores 279 Matter Capacity 300 Sight Range 16 Terrain Scan Density 10 Armor Coverage 150 Evasion (%) 55 Item Schematics ----------------- None Robot Schematics ------------------ None Fabricated ------------ Nothing Repaired ---------- Nothing Alien Tech Used ----------------- None Achievements -------------- Hunted Slippery One Challenges ------------ None Game ------ Seed ExoskeletonTrapBotcube Manual? 0 Play Time 00:12:56 Cumulative 11.0 hours Start 2025.09.05 @ 14:01:13 End 2025.09.05 @ 15:22:20 Sessions 1 Manual Loads 0 Difficulty Rogue Special Mode None Game No. 17 Rogue 17 Adventurer 0 Explorer 0 Win Type - Total 0 Types 0/0/0/0/0/0/0/0/0/0 Lore% 3 Gallery% 12 Achievement% 15 Wizard Run 0 Options --------- Layout 1 ASCII 0 Keyboard 1 Movement Vi Keybinds 0 Fullscreen 0 Font 40/SmallcapsGlow Map View 59x39 Zoom Use 0% Tactical HUD 1 Map Filters NONE Filters NONE Steam X RUN: ca14136b-1506-4e91-af84-6de08f896e2e